bitfinex/quotes_ETHUSD_20250403
["timestamp","ask_amount","ask_price","bid_price","bid_amount"]
[1743693921931,5.65048,1769.8,1769.4,6.42713]
[1743693922132,6.23,1769.9,1769.7,5.65041]
[1743693922330,6.23,1769.9,1769.8,5.65035]
[1743693922532,6.23,1769.9,1769.8,6.780426]
[1743693922732,6.23,1769.9,1769.8,7.546826]
[1743693923369,6.229,1770.2,1770.0,5.64945]
[1743693923569,11.87821,1770.2,1769.8,11.30053]
[1743693923867,13.366031,1770.2,1769.8,11.30053]
[1743693924057,13.366031,1770.2,1769.8,5.65024]
[1743693924661,19.015331,1770.2,1769.8,5.65024]
[1743693924848,13.366031,1770.2,1769.8,5.65024]
[1743693925049,13.366031,1770.2,1769.8,11.30047]
[1743693925275,7.716821,1770.2,1769.9,5.65001]
[1743693925455,13.365901,1770.2,1769.9,5.65001]
[1743693926037,7.716821,1770.2,1769.9,11.29993]
[1743693926275,6.228,1770.2,1770.1,5.6493]
[1743693926840,6.228,1770.2,1770.0,6.43018]
[1743693926841,40.687,1770.4,1770.2,5.64876]
[1743693927041,6.228,1770.3,1770.2,11.2977]
[1743693927478,6.228,1770.3,1770.2,5.64876]
[1743693927673,10.9195,1770.3,1770.1,5.64933]
[1743693927975,6.228,1770.3,1770.1,11.29859]
[1743693928173,6.228,1770.3,1770.2,5.64907]
[1743693928479,40.687,1770.4,1770.3,5.64876]
[1743693931140,40.687,1770.4,1770.2,5.64907]
[1743693931564,40.687,1770.4,1770.2,11.29797]
[1743693931878,40.687,1770.4,1770.3,5.64876]
[1743693932576,40.687,1770.4,1770.2,5.6489]
[1743693932751,46.19,1770.4,1770.1,5.64926]
[1743693932951,51.8386,1770.4,1770.0,11.29922]
[1743693933158,57.48725,1770.4,1770.0,5.64955]
[1743693933480,46.19,1770.4,1769.8,5.6503]
[1743693933650,11.29848,1770.2,1769.8,5.65022]
[1743693933980,6.226,1770.1,1769.8,5.65022]
[1743693934287,6.226,1770.1,1769.9,5.64991]
[1743693934887,0.7522,1770.0,1769.7,5.65064]
[1743693935188,0.7522,1770.0,1769.8,5.65035]
[1743693935358,0.7522,1770.0,1769.7,11.30109]
[1743693935549,0.7522,1770.0,1769.7,5.65052]
[1743693935750,5.65007,1769.9,1769.6,5.65087]
[1743693936058,8.27311878,1770.0,1769.7,5.65053]
[1743693936241,13.92308878,1770.0,1769.6,5.65092]
[1743693936444,13.92308878,1770.0,1769.6,5.65088]
[1743693936639,8.27311878,1770.0,1769.6,11.30166]
[1743693936882,6.47736188,1769.9,1769.5,5.6512]
[1743693937069,6.47736188,1769.9,1769.5,11.30235]
[1743693937386,12.12766188,1769.9,1769.5,5.65115]
[1743693937570,12.12758188,1769.9,1769.5,11.30236]
[1743693937885,6.47736188,1769.9,1769.5,11.30235]
[1743693938185,12.12749188,1769.9,1769.5,5.65112]
[1743693938347,3.82731188,1769.9,1769.6,5.65078]
[1743693938548,9.47757188,1769.9,1769.5,5.65121]
[1743693938773,9.47757188,1769.9,1769.5,11.30237]
[1743693938774,15.12783188,1769.9,1769.5,11.30237]
[1743693939086,9.224,1770.0,1769.9,5.64984]
[1743693939299,44.48729448,1770.4,1769.9,0.05649799]
[1743693939447,44.48729448,1770.4,1770.2,5.64889]
[1743693939448,40.687,1770.4,1770.2,5.64889]
[1743693939641,40.687,1770.4,1770.2,11.29778]
[1743693940081,40.687,1770.4,1770.1,11.29854]
[1743693940282,40.687,1770.4,1770.2,5.64894]
[1743693940459,40.687,1770.4,1770.3,5.64876]
[1743693947971,40.687,1770.4,1770.3,5.70524125]
[1743693948163,40.687,1770.4,1770.3,5.64876]
[1743693950408,40.687,1770.4,1770.1,5.64934]
[1743693950595,40.687,1770.4,1770.1,5.64928]
[1743693950763,40.687,1770.4,1770.2,5.64897]
[1743693950957,45.45513,1770.4,1770.2,5.64897]
[1743693951271,40.687,1770.4,1770.2,5.64897]
[1743693951606,40.687,1770.4,1770.1,5.64933]
[1743693951786,46.33544,1770.4,1770.1,5.64933]
[1743693951987,5.64896,1770.3,1769.9,5.64987]
[1743693952306,6.479,1770.2,1769.9,5.64987]
[1743693952606,6.22,1770.1,1770.0,5.6496]
[1743693953313,40.687,1770.4,1770.3,5.64876]
[1743693955168,40.687,1770.4,1770.3,6.41666]
[1743693955369,40.687,1770.4,1770.3,6.47314061]
[1743693955906,40.687,1770.4,1770.3,6.41666]
[1743693956238,40.687,1770.4,1770.3,7.62322]
[1743693957205,0.8543,1770.9,1770.8,5.64716]
[1743693957206,0.05,1770.9,1770.8,5.64716]
[1743693958012,0.05,1770.9,1770.7,11.29472]
[1743693958349,0.05,1770.9,1770.8,5.64716]
[1743693958956,0.05,1770.9,1770.8,6.77661]
[1743693961356,0.05,1770.9,1770.8,5.64716]
[1743693961811,0.05,1770.9,1770.8,6.4762228]
[1743693962016,0.05,1770.9,1770.8,6.41976]
[1743693962560,40.72,1771.9,1771.8,5.64397]
[1743693962858,46.936,1771.9,1771.8,6.208367]
[1743693963068,0.05,1771.9,1771.8,6.26480129]
[1743693963520,0.05,1771.9,1771.8,6.208367]
[1743693963719,6.215,1772.5,1772.4,5.64195]
[1743693963948,6.215,1772.5,1772.3,5.64238]
[1743693964130,6.215,1772.5,1772.1,0.7643]
[1743693964337,6.215,1772.5,1772.3,5.64213]
[1743693964868,6.215,1772.5,1772.3,11.28434]
[1743693965021,6.215,1772.5,1772.2,5.64258]
[1743693965219,11.467245,1772.5,1772.1,5.64291]
[1743693965681,3.0,1772.4,1772.1,5.64291]
[1743693965864,8.64221,1772.4,1772.1,5.643]
[1743693966065,3.0,1772.4,1772.1,5.643]
[1743693966262,8.64209,1772.4,1772.1,5.643]
[1743693966578,8.64209,1772.4,1771.8,0.564397]
[1743693966579,6.41586,1772.3,1771.8,6.208287]
[1743693966870,6.41586,1772.3,1772.0,5.64332]
[1743693966871,0.7733,1772.3,1772.0,5.64332]
[1743693967060,0.7733,1772.3,1772.1,5.64287]
[1743693967384,8.64227,1772.4,1772.0,5.64333]
[1743693967564,10.769505,1772.4,1772.0,5.64333]
[1743693967878,6.212,1772.3,1772.1,5.64286]
[1743693968232,6.212,1772.3,1772.2,5.6427]
[1743693969168,3.7733,1772.5,1772.3,5.64231]
[1743693969355,6.211,1772.4,1772.3,5.64231]
[1743693970456,6.211,1772.4,1772.2,5.64266]
[1743693970656,6.211,1772.4,1772.1,5.6428]
[1743693971057,6.211,1772.4,1771.9,5.64363]
[1743693971266,5.64268,1772.3,1772.0,5.64328]
[1743693971466,11.28527,1772.3,1771.9,5.64363]
[1743693971680,11.2852,1772.3,1771.9,5.64363]
[1743693971837,5.64259,1772.3,1771.9,5.64349]
[1743693972036,5.64273,1772.2,1771.9,5.64349]
[1743693972233,4.128532,1772.2,1771.8,5.64389]
[1743693972537,4.128532,1772.2,1771.2,6.47562]
[1743693972538,0.8172,1771.7,1771.2,6.47562]
[1743693972739,3.0,1771.5,1771.2,5.64587]
[1743693972939,3.0,1771.5,1771.0,0.8299]
[1743693972940,8.64507,1771.5,1771.1,5.64606]
[1743693973135,11.29079,1771.4,1771.0,6.47638]
[1743693973339,11.29079,1771.4,1770.8,6.11]
[1743693973340,0.7916,1771.3,1770.8,6.8751]
[1743693973649,0.7916,1771.3,1771.1,5.64603]
[1743693973650,6.208,1771.2,1771.1,5.64603]
[1743693974042,44.44229448,1771.7,1771.0,11.29278]
[1743693974288,9.208,1771.6,1771.5,5.64476]
[1743693974454,6.208,1771.6,1771.5,5.64476]
[1743693974651,6.208,1771.6,1771.4,5.64511]
[1743693974877,6.208,1771.6,1771.3,5.64538]
[1743693975079,6.208,1771.6,1771.4,5.64512]
[1743693975247,40.642,1771.7,1771.6,5.64461]
[1743693977272,40.642,1771.7,1771.3,5.64525]
[1743693977459,40.642,1771.7,1771.4,5.64515]
[1743693977650,40.642,1771.7,1771.4,11.29024]
[1743693978097,40.642,1771.7,1771.1,12.5233]
[1743693978252,40.642,1771.7,1771.5,5.64471]
[1743693978454,40.642,1771.7,1771.6,5.64461]
[1743693978662,46.85,1771.7,1771.6,5.64461]
[1743693979247,46.85,1771.7,1771.3,5.64545]
[1743693979446,46.85,1771.7,1771.5,5.64482]
[1743693979666,46.85,1771.7,1771.4,5.64524]
[1743693979985,46.85,1771.7,1771.4,5.64507]
[1743693980192,46.85,1771.7,1771.4,11.2902]
[1743693980374,46.85,1771.7,1771.4,5.64507]
[1743693980597,46.85,1771.7,1771.5,5.64483]
[1743693980799,46.85,1771.7,1771.4,5.64507]
[1743693980974,46.85,1771.7,1771.4,11.2902]
[1743693981305,46.85,1771.7,1771.4,5.64507]
[1743693981476,46.85,1771.7,1771.3,5.64557]
[1743693981673,46.85,1771.7,1771.6,5.64461]
[1743693982083,40.642,1771.7,1771.5,11.28956]
[1743693982287,40.642,1771.7,1771.5,5.64477]
[1743693983206,40.642,1771.7,1771.6,5.64461]
[1743693983405,40.642,1771.7,1771.5,5.64477]
[1743693983606,46.28634,1771.7,1771.4,6.209647]
[1743693983785,40.642,1771.7,1771.5,5.64473]
[1743693983981,40.642,1771.7,1771.6,5.64461]
[1743693984304,40.642,1771.7,1771.4,5.64511]
[1743693984502,46.848,1771.7,1771.6,5.64461]
[1743693984907,40.642,1771.7,1771.6,5.70105278]
[1743693985213,6.206,1772.1,1772.0,5.64334]
[1743693985519,6.206,1772.1,1772.0,6.772026]
[1743693986112,6.206,1772.1,1772.0,1.128686]
[1743693986310,6.206,1772.1,1772.0,5.64334]
[1743693988302,40.644,1772.4,1772.3,5.64238]
[1743693988603,46.848,1772.4,1772.3,5.64238]
[1743693989133,46.848,1772.4,1772.2,5.64256]
[1743693990229,45.84924255,1772.4,1772.2,5.64256]
[1743693990431,45.84924255,1772.4,1772.1,11.28583]
[1743693990934,45.84924255,1772.4,1772.1,11.2857]
[1743693991232,45.84924255,1772.4,1772.1,5.64284]
[1743693991457,45.84924255,1772.4,1771.8,5.64387]
[1743693991458,5.64289,1772.2,1771.8,5.64387]
[1743693991728,0.7923,1772.3,1772.0,5.64329]
[1743693991729,6.43478,1772.3,1772.0,5.64329]
[1743693992504,6.43478,1772.3,1771.9,11.28728]
[1743693992695,0.7923,1772.3,1772.1,5.64291]
[1743693992895,6.202,1772.2,1772.1,5.64289]
[1743693993518,0.7923,1772.3,1772.2,5.6427]
[1743693993716,6.9943,1772.3,1772.2,5.6427]
[1743693993916,6.202,1772.3,1772.2,5.6427]
[1743693995112,39.64524255,1772.4,1772.3,5.64238]
[1743693995346,45.84724255,1772.4,1772.3,5.69880099]
[1743693995506,45.84724255,1772.4,1772.3,5.64238]
[1743693995948,39.64524255,1772.4,1772.3,5.64238]
[1743694000434,39.64524255,1772.4,1772.2,5.64256]
[1743694000855,39.64524255,1772.4,1772.1,11.28586]
[1743694001069,39.64524255,1772.4,1772.2,5.64258]
[1743694001271,39.64524255,1772.4,1772.3,5.64238]
[1743694001587,39.64524255,1772.4,1772.2,5.64254]
[1743694001889,39.64524255,1772.4,1772.1,5.64291]
[1743694002043,39.64524255,1772.4,1772.2,5.64265]
[1743694002383,39.64524255,1772.4,1772.1,11.28587]
[1743694002677,39.64524255,1772.4,1772.0,5.6432]
[1743694002844,5.64263,1772.3,1772.0,5.64332]
[1743694003221,6.40778,1772.1,1771.7,5.64429]
[1743694003360,12.05097,1772.1,1771.7,5.64418]
[1743694003542,5.64335,1772.0,1771.7,5.64418]
[1743694004050,3.7647,1772.1,1771.9,5.64351]
[1743694004244,3.7647,1772.1,1772.0,5.64334]
[1743694004478,6.199,1772.2,1772.0,11.28668]
[1743694004785,6.199,1772.2,1772.1,5.64302]
[1743694005079,6.199,1772.2,1772.0,5.6432]
[1743694005282,6.199,1772.2,1772.1,5.64302]
[1743694005491,6.198,1772.2,1772.1,5.64302]
[1743694005970,6.198,1772.3,1772.2,5.6427]
[1743694006297,6.198,1772.3,1772.0,11.85086]
[1743694006467,39.64524255,1772.4,1772.1,0.8151]
[1743694006811,39.64524255,1772.4,1772.2,5.64259]
[1743694007303,39.64524255,1772.4,1772.1,5.64288]
[1743694007484,45.28731255,1772.4,1772.0,11.28644]
[1743694007675,56.15600381,1772.4,1772.0,5.64317]
[1743694007874,50.51377381,1772.4,1772.0,11.28641]
[1743694008076,5.64252,1772.3,1771.9,11.28724]
[1743694008387,0.7816,1772.2,1771.9,5.6435]
[1743694008567,6.197,1772.1,1771.9,5.6435]
[1743694008771,6.197,1772.1,1771.7,6.11]
[1743694008772,13.10231,1772.1,1771.7,5.64422]
[1743694008963,13.10231,1772.1,1771.7,11.28837]
[1743694009161,0.28257251,1773.4,1773.3,5.6392]
[1743694009387,1.3071,1774.0,1773.3,6.42097]
[1743694009559,1.3071,1774.0,1773.3,0.7819]
[1743694009560,5.80587617,1773.8,1773.3,0.7819]
[1743694009762,5.6383,1773.6,1773.2,5.6394]
[1743694009971,4.31746379,1773.8,1773.0,6.41841]
[1743694009972,5.63889,1773.4,1773.0,6.41841]
[1743694010163,11.83556,1773.5,1773.1,5.63979]
[1743694010485,6.197,1773.5,1773.0,0.7783]
[1743694010666,6.197,1773.5,1773.4,5.63888]
[1743694010862,6.197,1773.5,1773.3,11.27818]
[1743694011068,6.197,1773.5,1773.4,5.63887]
[1743694011263,0.7642,1773.6,1773.4,5.63887]
[1743694011510,6.195,1773.5,1773.3,5.63909]
[1743694011807,6.195,1773.5,1773.3,5.63901]
[1743694012039,3.7642,1773.6,1773.5,5.63856]
[1743694012202,1.31746379,1773.8,1773.6,5.63805]
[1743694012203,0.16814617,1773.8,1773.6,5.63805]
[1743694012506,6.195,1773.7,1773.6,5.63805]
[1743694012883,6.195,1773.7,1773.4,11.27761]
[1743694013094,12.46952462,1773.7,1773.3,5.63918]
[1743694013272,6.83131462,1773.7,1773.3,5.63899]
[1743694013804,12.46927462,1773.7,1773.4,5.63887]
[1743694014169,6.83131462,1773.7,1773.4,5.63887]
[1743694014370,6.83131462,1773.7,1773.3,11.27803]
[1743694014571,6.83131462,1773.7,1773.3,5.63899]
[1743694014768,6.83131462,1773.7,1773.3,11.27799]
[1743694014962,3.16814617,1773.8,1773.6,5.63811]
[1743694015167,6.194,1773.7,1773.6,5.63811]
[1743694015883,6.194,1773.7,1773.5,5.63853]
[1743694016403,6.194,1773.7,1773.6,5.63824]
[1743694016813,6.194,1773.7,1773.5,5.6384]
[1743694017108,6.194,1773.7,1773.6,5.63824]
[1743694017305,6.194,1773.7,1773.5,11.27685]
[1743694017509,6.194,1773.7,1773.5,5.6384]
[1743694017694,6.194,1773.7,1773.6,5.63824]
[1743694018411,0.16814617,1773.8,1773.7,5.63793]
[1743694018591,0.16814617,1773.8,1773.7,6.39893]
[1743694019481,0.16814617,1773.8,1773.7,5.63793]
[1743694019679,0.16814617,1773.8,1773.6,5.63811]
[1743694019905,6.193,1773.7,1773.6,5.63811]
[1743694020793,6.193,1773.7,1773.6,5.63824]
[1743694021281,6.193,1773.7,1773.4,5.63876]
[1743694021481,9.40639,1773.6,1773.2,5.6394]
[1743694021685,5.63867,1773.5,1773.1,11.27926]
[1743694021891,5.6521184,1773.5,1773.1,11.27931]
[1743694022099,0.0134484,1773.5,1773.3,5.63903]
[1743694022326,0.0134484,1773.5,1773.4,5.63888]
[1743694022480,0.0134484,1773.5,1773.3,5.63903]
[1743694022679,0.0134484,1773.5,1773.4,6.40248]
[1743694022876,0.0134484,1773.5,1773.4,5.63888]
[1743694023778,0.7961,1773.4,1773.0,0.8175]
[1743694023977,6.191,1773.3,1773.1,5.63973]
[1743694024228,6.2044484,1773.3,1772.9,5.64041]
[1743694024423,46.24669,1773.2,1772.7,5.64081]
[1743694024574,6.41666,1773.1,1772.7,5.64081]
[1743694024774,6.4301084,1773.1,1772.7,5.64081]
[1743694025393,5.64017,1773.0,1772.6,11.28266]
[1743694025592,6.191,1772.9,1772.5,5.64171]
[1743694025782,6.2044484,1772.9,1772.6,5.64119]
[1743694026721,11.8449384,1772.9,1772.5,11.28328]
[1743694026895,6.2044484,1772.9,1772.6,5.64142]
[1743694027689,6.2044484,1772.9,1772.8,5.64079]
[1743694028206,0.0134484,1772.9,1772.8,5.64079]
[1743694028420,0.0134484,1772.9,1772.8,6.768973]
[1743694028831,0.0134484,1772.9,1772.8,6.82537036]
[1743694028989,8.4e-06,1772.9,1772.8,12.93537036]
[1743694029185,40.607,1773.2,1773.1,5.63983]
[1743694029883,46.799,1773.2,1773.1,5.63983]
[1743694030523,46.799,1773.2,1773.0,11.28002]
[1743694030847,46.799,1773.2,1773.1,5.63983]
[1743694032508,46.799,1773.2,1772.9,5.64035]
[1743694032717,0.8314,1773.1,1772.9,5.64035]
[1743694033024,0.8314,1773.1,1772.9,11.28064]
[1743694033185,0.8314,1773.1,1772.9,5.64031]
[1743694033386,0.8314,1773.1,1773.0,5.64015]
[1743694033792,46.799,1773.2,1773.1,5.63983]
[1743694034190,40.607,1773.2,1773.1,5.63983]
[1743694034782,40.607,1773.2,1773.0,5.64015]
[1743694034987,40.607,1773.2,1772.9,11.28082]
[1743694034988,41.4351,1773.2,1772.9,11.28082]
[1743694035422,41.4351,1773.2,1772.9,11.2807]
[1743694035622,41.4351,1773.2,1772.9,11.28067]
[1743694035928,41.4351,1773.2,1773.0,5.64015]
[1743694036926,41.4351,1773.2,1772.9,5.64033]
[1743694037140,41.4351,1773.2,1773.0,5.64]
[1743694037529,40.607,1773.2,1773.1,5.63983]
[1743694037729,46.798,1773.2,1773.1,5.63983]
[1743694037936,46.798,1773.2,1773.1,6.848893]
[1743694038927,40.607,1773.2,1773.1,6.848893]
[1743694039249,40.607,1773.2,1773.1,5.63983]
[1743694039430,40.607,1773.2,1773.0,5.64]
[1743694039940,40.607,1773.2,1773.0,5.64006]
[1743694040107,40.607,1773.2,1773.0,11.28008]
[1743694040308,40.607,1773.2,1773.0,5.64002]
[1743694040512,40.607,1773.2,1773.1,5.63983]
[1743694041711,0.98094617,1773.8,1773.6,5.63806]
[1743694041943,6.19,1773.7,1773.4,5.63877]
[1743694042150,17.46624,1773.7,1773.3,5.63906]
[1743694042448,0.8217,1773.5,1773.2,11.27881]
[1743694042746,0.8217,1773.5,1773.2,5.63948]
[1743694043410,6.46029,1773.5,1773.2,5.63948]
[1743694043642,0.8217,1773.5,1773.2,5.63951]
[1743694043811,0.8217,1773.5,1773.2,11.27891]
[1743694044009,6.62155617,1773.8,1773.4,5.63868]
[1743694044210,6.19,1773.7,1773.5,5.63829]
[1743694044444,6.19,1773.7,1773.6,5.63824]
[1743694044846,6.19,1773.7,1773.5,5.63829]
[1743694045160,6.19,1773.7,1773.3,0.8222]
[1743694045337,6.19,1773.7,1773.6,5.63824]
[1743694047073,0.16814617,1773.8,1773.7,6.42413]
[1743694048070,0.16814617,1773.8,1773.7,13.56002088]
[1743694048239,6.17e-06,1773.8,1773.7,13.67989439]
[1743694048861,6.17e-06,1773.8,1773.7,13.85609835]
[1743694049065,6.17e-06,1773.9,1773.8,7.00121]
[1743694049263,6.17e-06,1773.9,1773.8,15.06332083]
[1743694049671,6.17e-06,1773.9,1773.8,14.51332083]
[1743694050472,6.17e-06,1773.9,1773.8,14.68952479]
[1743694051672,6.17e-06,1773.9,1773.8,13.87592479]
[1743694051830,6.17e-06,1773.9,1773.8,5.63761]
[1743694052466,6.17e-06,1773.9,1773.7,5.63779]
[1743694052644,6.17e-06,1773.9,1773.6,5.63814]
[1743694053038,3.80030065,1773.9,1773.5,5.92034087]
[1743694053253,9.43761065,1773.9,1773.5,5.92044087]
[1743694053464,3.80030065,1773.9,1773.6,5.63814]
[1743694053665,6.17e-06,1773.9,1773.7,5.63773]
[1743694053869,6.187,1773.8,1773.7,5.63773]
[1743694054569,6.17e-06,1773.9,1773.8,5.63761]
[1743694056075,0.83120617,1773.9,1773.4,5.63888]
[1743694056275,5.63773,1773.8,1773.4,5.63888]
[1743694056463,0.8312,1773.6,1773.4,5.63888]
[1743694056637,6.186,1773.5,1773.4,5.63875]
[1743694056837,6.186,1773.5,1773.4,5.63888]
[1743694057040,6.186,1773.5,1773.3,5.63907]
[1743694057277,6.186,1773.5,1773.4,5.63888]
[1743694057575,6.186,1773.5,1773.4,6.766675]
[1743694058282,44.35850617,1773.9,1773.6,5.63824]
[1743694058439,6.186,1773.8,1773.5,5.63846]
[1743694058637,11.82377,1773.8,1773.5,5.63856]
[1743694058879,11.82377,1773.8,1773.0,12.71482846]
[1743694058880,5.63869,1773.5,1773.0,6.11]
[1743694059179,6.9505,1773.4,1773.1,5.63961]
[1743694059376,6.186,1773.4,1773.2,11.27875]
[1743694059554,6.186,1773.4,1773.3,5.6392]
[1743694060287,6.186,1773.4,1773.3,6.3906]
[1743694060649,40.59400617,1773.9,1773.7,5.63793]
[1743694060895,40.59400617,1773.9,1773.8,5.63761]
[1743694061075,6.17e-06,1773.9,1773.8,5.63761]
[1743694062584,6.18600617,1773.9,1773.8,5.63761]
[1743694063409,6.18600617,1773.9,1773.7,5.63779]
[1743694063571,7.63780679,1773.9,1773.5,5.63836]
[1743694063756,6.96420617,1773.9,1773.5,5.63836]
[1743694063955,6.96420617,1773.9,1773.6,5.63812]
[1743694064364,6.96420617,1773.9,1773.6,11.27617]
[1743694064683,6.96420617,1773.9,1773.6,5.63805]
[1743694064849,12.60167617,1773.9,1773.5,11.27697]
[1743694065051,12.60171617,1773.9,1773.5,5.63837]
[1743694065482,6.96420617,1773.9,1773.6,5.63816]
[1743694065660,6.96420617,1773.9,1773.7,5.6379]
[1743694065866,6.96420617,1773.9,1773.7,5.63789]
[1743694066265,6.96420617,1773.9,1773.5,5.63839]
[1743694066466,19.55428879,1773.9,1773.5,5.63839]
[1743694066794,3.0,1773.8,1773.5,5.63843]
[1743694066961,3.0,1773.8,1773.5,5.63837]
[1743694067168,6.96420617,1773.9,1773.7,5.63771]
[1743694067370,6.96420617,1773.9,1773.7,11.27547]
[1743694067593,6.96420617,1773.9,1773.7,5.63771]
[1743694067791,41.147,1774.0,1773.8,5.63761]
[1743694068000,41.147,1774.0,1773.9,5.63729]
[1743694069360,41.147,1774.0,1773.8,11.27522]
[1743694069564,41.147,1774.0,1773.8,5.63761]
[1743694069901,41.147,1774.0,1773.9,5.63729]
[1743694070497,40.597,1774.0,1773.9,5.63729]
[1743694071175,46.23403,1774.0,1773.7,5.63789]
[1743694071400,6.3895,1773.9,1773.5,17.38699]
[1743694071612,11.82275,1773.8,1773.4,5.63884]
[1743694071907,6.39036,1773.6,1773.2,5.63938]
[1743694072064,5.63859,1773.5,1773.2,5.63938]
[1743694072263,6.185,1773.4,1773.1,11.27945]
[1743694072465,6.185,1773.4,1773.2,5.63948]
[1743694072690,0.28688361,1775.1,1773.5,0.9261]
[1743694072902,0.28688361,1775.1,1773.3,11.34762815]
[1743694072903,0.005,1775.1,1774.5,7.01149]
[1743694073113,5.63851,1775.1,1774.5,6.46149]
[1743694073469,6.349,1774.8,1774.5,6.46149]
[1743694073669,5.63584429,1775.0,1774.4,5.63558]
[1743694073886,6.352,1774.6,1774.4,5.63551]
[1743694074179,0.71849,1774.6,1774.4,11.27108]
[1743694074372,6.349,1774.6,1774.5,5.69174165]
[1743694074708,6.349,1774.6,1774.5,6.39739]
[1743694074906,6.349,1774.6,1774.5,5.63539]
[1743694076542,6.349,1774.6,1774.5,5.69173719]
[1743694076842,6.349,1774.6,1774.5,5.63539]
[1743694077137,6.349,1774.6,1774.5,6.78009357]
[1743694077334,0.05,1774.9,1774.8,5.63443]
[1743694077830,0.05,1774.9,1774.8,5.69076615]
[1743694078140,0.05,1774.9,1774.8,5.63443]
[1743694078299,0.05,1774.9,1774.8,6.51586613]
[1743694078640,0.00186429,1775.0,1774.9,5.63412]
[1743694078797,4.29e-06,1775.0,1774.9,12.56922]
[1743694078999,4.29e-06,1775.1,1775.0,5.6338]
[1743694079206,1e-05,1775.6,1775.5,6.44121]
[1743694079462,1e-05,1775.6,1775.5,12.55121]
[1743694079663,1e-05,1775.6,1775.5,14.369584]
[1743694080429,1e-05,1775.6,1775.5,11.74221]
[1743694082348,1e-05,1775.6,1775.5,13.12111]
[1743694082549,1e-05,1775.6,1775.5,12.57111]
[1743694083151,1e-05,1775.6,1775.5,13.12111]
[1743694083348,6.403,1776.1,1776.0,5.63063]
[1743694085044,11.1019,1776.1,1776.0,5.63063]
[1743694087219,6.381,1776.1,1776.0,5.63035]
[1743694087418,6.381,1776.1,1775.9,11.26157]
[1743694087617,6.381,1776.1,1775.9,11.26152]
[1743694087859,6.381,1776.1,1776.0,5.63063]
[1743694088168,6.402,1776.1,1776.0,5.63063]
[1743694088378,0.55,1776.5,1776.4,6.39016]
[1743694088655,0.55,1776.5,1776.2,5.62992]
[1743694088817,0.7877,1776.4,1776.1,5.63009]
[1743694089017,1.484379,1776.4,1776.2,5.62999]
[1743694089322,0.00476739,1776.3,1775.7,5.63154]
[1743694089523,6.43027,1775.9,1775.5,5.63212]
[1743694089740,47.09,1775.8,1775.5,5.63201]
[1743694090272,40.553,1775.8,1775.7,5.63158]
[1743694090552,6.55,1776.0,1775.7,5.63141]
[1743694090761,0.8237,1775.9,1775.8,5.63126]
[1743694091000,0.8237,1775.9,1775.5,5.63192]
[1743694091125,5.63127,1775.8,1775.4,11.26476]
[1743694091456,6.45495,1775.9,1775.5,5.63209]
[1743694091854,5.63131,1775.8,1775.4,5.63237]
[1743694092056,6.839936,1775.8,1775.3,5.63283]
[1743694092224,6.41943,1775.7,1775.2,5.63297]
[1743694092422,46.1849,1775.6,1775.2,5.63297]
[1743694092623,6.547,1775.5,1775.1,11.26694]
[1743694092824,6.547,1775.5,1775.1,11.26671]
[1743694093055,0.8227,1775.4,1775.1,5.63324]
[1743694093258,40.553,1775.6,1775.5,5.63221]
[1743694093446,47.105,1775.6,1775.5,5.63221]
[1743694093767,47.105,1775.6,1775.3,5.63283]
[1743694093929,47.105,1775.6,1775.3,5.63263]
[1743694094260,47.105,1775.6,1775.1,5.68976498]
[1743694094459,47.105,1775.6,1775.5,5.63221]
[1743694095656,47.089,1775.6,1775.5,5.63221]
[1743694095856,40.553,1775.6,1775.5,6.41581]
[1743694096061,6.531,1775.8,1775.7,5.63158]
[1743694096263,0.7689,1776.1,1776.0,5.63063]
[1743694096565,7.3029,1776.1,1776.0,5.63063]
[1743694097441,7.3029,1776.1,1775.9,5.63092]
[1743694097652,8.03319,1776.1,1775.9,11.26169]
[1743694097963,7.3029,1776.1,1776.0,5.63063]
[1743694098544,6.534,1776.1,1776.0,5.63063]
[1743694102588,6.534,1776.1,1775.9,5.63077]
[1743694102792,0.7626,1776.0,1775.8,5.63122]
[1743694103592,6.39327,1776.0,1775.7,5.63155]
[1743694103894,0.639327,1775.9,1775.6,17.3736]
[1743694104193,0.639327,1775.9,1775.6,11.26354]
[1743694104495,6.270297,1775.9,1775.6,5.63174]
[1743694104675,6.270297,1775.9,1775.5,5.63219]
[1743694104676,11.901407,1775.9,1775.5,5.63219]
[1743694104878,1.1901407,1775.8,1775.5,11.26428]
[1743694105084,0.7872,1775.6,1775.3,5.63273]
[1743694105254,5.63244,1775.5,1775.3,0.28168476]
[1743694105457,46.96973,1775.4,1775.3,0.28168476]
[1743694106413,50.89368721,1775.4,1775.3,0.28168476]
[1743694106608,54.47825998,1775.4,1775.3,0.28168476]
[1743694106814,5.63292,1775.3,1775.0,5.63378]
[1743694107131,6.445,1775.2,1775.0,5.63378]
[1743694107312,41.3372,1775.4,1775.3,5.63285]
[1743694107511,47.001,1775.4,1775.3,5.63285]
[1743694107715,40.55,1775.4,1775.3,6.759438]
[1743694107890,46.999,1775.4,1775.3,6.81576321]
[1743694108089,46.999,1775.4,1775.3,6.759438]
[1743694108624,46.999,1775.4,1775.3,7.565438]
[1743694108995,46.999,1775.4,1775.3,7.84712276]